fUSD/lending_fUSD_20241219
["ID","MTS","AMOUNT","RATE_DAILY","PERIOD"]
[346025795,1734633046066,-500.0,0.00024539,4]
[346025796,1734633046075,-421.98,0.00024539,4]
[346025797,1734633046084,-500.0,0.00024539,4]
[346025798,1734633046094,-644.18,0.00024539,4]
[346025799,1734633046103,-500.0,0.00024539,4]
[346025800,1734633046112,-500.0,0.00024539,4]
[346025801,1734633046122,-500.0,0.00024539,4]
[346025802,1734633046132,-500.0,0.00024539,4]
[346025803,1734633046142,-500.0,0.00024539,4]
[346025804,1734633046152,-523.18323387,0.00024539,4]
[346025805,1734633046168,-500.0,0.00024539,4]
[346025806,1734633046177,-1128.66,0.00024539,4]
[346025807,1734633046186,-580.72,0.00024539,4]
[346025808,1734633046196,-500.0,0.00024539,4]
[346025809,1734633046205,-500.0,0.00024539,4]
[346025810,1734633046215,-500.0,0.00024539,4]
[346025811,1734633046224,-500.0,0.00024539,4]
[346025812,1734633046233,-500.0,0.00024539,4]
[346025813,1734633046243,-342.57,0.00024539,4]
[346025814,1734633046253,-167.79,0.00024539,4]
[346025815,1734633046262,-500.0,0.00024539,4]
[346025816,1734633046272,-500.0,0.00024539,4]
[346025817,1734633046281,-500.0,0.00024539,4]
[346025818,1734633046291,-500.0,0.00024539,4]
[346025819,1734633046300,-500.0,0.00024539,4]
[346025820,1734633046314,-500.0,0.00024539,4]
[346025821,1734633046324,-500.0,0.0002454,4]
[346025822,1734633046334,-500.0,0.0002454,4]
[346025823,1734633046344,-500.0,0.0002454,4]
[346025824,1734633046353,-500.0,0.0002454,4]
[346025825,1734633046363,-500.0,0.0002454,4]
[346025826,1734633046372,-500.0,0.0002454,4]
[346025827,1734633046382,-500.0,0.0002454,4]
[346025828,1734633046392,-500.0,0.0002454,4]
[346025829,1734633046402,-500.0,0.0002454,4]
[346025830,1734633046417,-500.0,0.0002454,4]
[346025831,1734633046426,-500.0,0.0002454,4]
[346025832,1734633046436,-500.0,0.0002454,4]
[346025833,1734633046446,-500.0,0.0002454,4]
[346025834,1734633046455,-500.0,0.0002454,4]
[346025835,1734633046465,-500.0,0.0002454,4]
[346025836,1734633046475,-500.0,0.0002454,4]
[346025837,1734633046484,-500.0,0.0002454,4]
[346025838,1734633046493,-500.0,0.0002454,4]
[346025839,1734633046503,-785.97,0.0002454,4]
[346025840,1734633046513,-654.64,0.0002454,4]
[346025841,1734633046522,-500.0,0.0002454,4]
[346025842,1734633046532,-500.0,0.0002454,4]
[346025844,1734633046542,-500.0,0.0002454,4]
[346025846,1734633046551,-530.63,0.0002454,4]
[346025848,1734633046561,-500.0,0.0002454,4]
[346025849,1734633046571,-921.81,0.0002454,4]
[346025851,1734633046580,-500.0,0.0002454,4]
[346025852,1734633046590,-500.0,0.0002454,4]
[346025853,1734633046599,-404.34395746,0.0002454,4]
[346025855,1734633046609,-500.0,0.0002454,4]
[346025857,1734633046619,-500.0,0.0002454,4]
[346025858,1734633046629,-500.0,0.0002454,4]
[346025859,1734633046638,-500.0,0.0002454,4]
[346025860,1734633046648,-500.0,0.0002454,4]
[346025861,1734633046658,-294.21475621,0.0002454,4]
[346025862,1734633046671,-166.03621368,0.00024547,4]
[346025863,1734633046681,-500.0,0.00024547,4]
[346025864,1734633046691,-500.0,0.00024547,4]
[346025865,1734633046701,-275.95672982,0.00024547,4]
[346025866,1734633046712,-500.0,0.00024547,4]
[346025867,1734633046721,-500.0,0.00024547,4]
[346025868,1734633046732,-500.0,0.00024547,4]
[346025869,1734633046742,-500.0,0.00024547,4]
[346025870,1734633046752,-252.77851295,0.00024547,4]
[346025871,1734633046763,-633.94243511,0.00024547,4]
[346025872,1734633046773,-500.0,0.00024547,4]
[346025873,1734633046787,-500.0,0.00024547,4]
[346025874,1734633046796,-500.0,0.00024547,4]
[346025875,1734633046806,-500.0,0.00024547,4]
[346025876,1734633046815,-500.0,0.00024547,4]
[346025877,1734633046824,-553.86,0.00024547,4]
[346025878,1734633046834,-500.0,0.00024547,4]
[346025879,1734633046843,-500.0,0.00024547,4]
[346025880,1734633046852,-500.0,0.00024547,4]
[346025881,1734633046861,-500.0,0.00024547,4]
[346025882,1734633046871,-500.0,0.00024547,4]
[346025883,1734633046881,-500.0,0.00024547,4]
[346025884,1734633046891,-505.09,0.00024547,4]
[346025885,1734633046900,-164.07,0.00024547,4]
[346025886,1734633046914,-522.74,0.00024547,4]
[346025887,1734633046924,-500.0,0.00024547,4]
[346025888,1734633046933,-600.45913529,0.00024547,4]
[346025889,1734633046942,-500.0,0.00024547,4]
[346025890,1734633046951,-577.83,0.00024547,4]
[346025891,1734633046959,-500.0,0.00024547,4]
[346025892,1734633046968,-500.0,0.00024547,4]
[346025893,1734633046978,-500.0,0.00024547,4]
[346025894,1734633046988,-500.0,0.00024547,4]
[346025895,1734633046997,-623.27,0.00024547,4]
[346025896,1734633047007,-500.0,0.00024547,4]
[346025897,1734633047016,-500.0,0.00024547,4]
[346025898,1734633047025,-500.0,0.00024547,4]
[346025899,1734633047035,-500.0,0.00024547,4]
[346025900,1734633047044,-500.0,0.00024547,4]
[346025901,1734633047054,-500.0,0.00024547,4]
[346025902,1734633047063,-500.0,0.00024547,4]
[346025903,1734633047072,-500.0,0.00024547,4]
[346025904,1734633047082,-500.0,0.00024547,4]
[346025905,1734633047091,-500.0,0.00024547,4]
[346025906,1734633047100,-644.78,0.00024547,4]
[346025907,1734633047109,-353.01,0.00024547,4]
[346025908,1734633047119,-500.0,0.00024547,4]
[346025909,1734633047128,-500.0,0.00024547,4]
[346025910,1734633047282,-500.0,0.00024547,4]
[346025911,1734633047292,-500.0,0.00024547,4]
[346025912,1734633047302,-500.0,0.00024547,4]
[346025913,1734633047311,-500.0,0.00024547,4]
[346025914,1734633047321,-500.0,0.00024547,4]
[346025915,1734633047330,-500.0,0.00024547,4]
[346025916,1734633047339,-706.52,0.00024547,4]
[346025917,1734633047348,-500.0,0.00024547,4]
[346025918,1734633047358,-500.0,0.00024547,4]
[346025919,1734633047368,-500.0,0.00024547,4]
[346025920,1734633047378,-500.0,0.00024547,4]
[346025921,1734633047391,-500.0,0.00024547,4]
[346025922,1734633047400,-1125.85,0.00024547,4]
[346025923,1734633047414,-500.0,0.00024549,4]
[346025924,1734633047424,-500.0,0.00024549,4]
[346025925,1734633047433,-500.0,0.00024549,4]
[346025926,1734633047443,-500.0,0.00024549,4]
[346025927,1734633047453,-1006.83,0.00024549,4]
[346025928,1734633047463,-500.0,0.00024549,4]
[346025929,1734633047473,-515.68,0.00024549,4]
[346025930,1734633047483,-500.0,0.00024549,4]
[346025931,1734633047493,-491.97483199,0.00024549,4]
[346025932,1734633047503,-568.96664248,0.00024549,4]
[346025933,1734633047513,-1387.2796,0.00024599,2]
[346025934,1734633047522,-259.2456,0.000246,2]
[346025935,1734633047532,-700.0,0.000246,8]
[346025936,1734633047542,-1544.96446837,0.00024618,2]
[346025937,1734633047551,-282.81836841,0.00024624,4]
[346025938,1734633047560,-1666.0,0.00024624,2]
[346025939,1734633047570,-231480.77037691,0.00024625,2]
[346025940,1734633047579,-150.0,0.00024629,4]
[346025941,1734633047589,-165.83466853,0.0002463,2]
[346025942,1734633047599,-500.0,0.00024657,4]
[346025943,1734633047608,-318.90801785,0.00024657,4]
[346025944,1734633047618,-13130.18327072,0.00024657,3]
[346025945,1734633047628,-150.0,0.00024658,2]
[346025946,1734633047637,-103442.72439063,0.0002468,2]
[346025947,1734633047646,-1500.0,0.000247,2]
[346025948,1734633047656,-600.0,0.000247,2]
[346025949,1734633047669,-183827.0,0.000247,4]
[346025950,1734633047679,-700.0,0.000247,9]
[346025951,1734633047688,-1544.96446837,0.00024712,2]
[346025952,1734633047697,-391.01790925,0.00024719,2]
[346025953,1734633047707,-153.0,0.00024729,2]
[346025954,1734633047717,-153.0,0.00024729,2]
[346025955,1734633047726,-150.0,0.00024731,2]
[346025956,1734633047735,-747.62,0.00024732,2]
[346025957,1734633047745,-150.0,0.00024739,2]
[346025958,1734633047754,-150.0,0.0002474,2]
[346025959,1734633047763,-150.0,0.00024748,4]
[346025960,1734633047773,-1687.94703953,0.0002475,2]
[346025961,1734633047783,-1963.78102,0.0002475,2]
[346025962,1734633047792,-150.0,0.00024754,2]
[346025963,1734633047805,-150.0,0.00024758,2]
[346025964,1734633047815,-165.39948093,0.00024767,2]
[346025965,1734633047825,-500.0,0.00024781,7]
[346025966,1734633047835,-150.0,0.00024797,2]
[346025967,1734633047846,-18822.72332919,0.000248,2]
[346025968,1734633047856,-500.0,0.000248,2]
[346025969,1734633047866,-1269.0,0.000248,9]
[346025970,1734633047877,-1302.0,0.000248,2]
[346025971,1734633047888,-1544.96446837,0.00024806,2]
[346025972,1734633047897,-500.0,0.00024812,4]
[346025973,1734633047907,-500.0,0.00024812,4]
[346025974,1734633047921,-500.0,0.00024812,4]
[346025975,1734633047931,-500.0,0.00024812,4]
[346025976,1734633047941,-431.41582393,0.00024812,4]
[346025977,1734633047950,-500.0,0.00024812,4]
[346025978,1734633047960,-521.84,0.00024812,4]
[346025979,1734633047970,-500.0,0.00024812,4]
[346025980,1734633047980,-500.0,0.00024812,4]
[346025981,1734633047991,-500.0,0.00024812,4]
[346025982,1734633048000,-500.0,0.00024812,4]
[346025983,1734633048010,-500.0,0.00024812,4]
[346025984,1734633048020,-500.0,0.00024812,4]
[346025985,1734633048029,-500.0,0.00024812,4]
[346025986,1734633048038,-500.0,0.00024812,4]
[346025987,1734633048048,-500.0,0.00024812,4]
[346025988,1734633048057,-500.0,0.00024812,4]
[346025989,1734633048067,-500.0,0.00024812,4]
[346025990,1734633048076,-815.31,0.00024812,4]
[346025991,1734633048085,-500.0,0.00024812,4]
[346025992,1734633048096,-500.0,0.00024812,4]
[346025993,1734633048106,-500.0,0.00024812,4]
[346025994,1734633048115,-500.0,0.00024812,4]
[346025995,1734633048126,-500.0,0.00024812,4]
[346025996,1734633048136,-500.64,0.00024812,4]
[346025997,1734633048146,-500.0,0.00024812,4]
[346025998,1734633048156,-500.0,0.00024812,4]
[346025999,1734633048168,-500.0,0.00024812,4]
[346026000,1734633048178,-500.0,0.00024812,4]
[346026001,1734633048187,-500.0,0.00024812,4]
[346026002,1734633048197,-500.0,0.00024812,4]
[346026003,1734633048206,-500.0,0.00024812,4]
[346026004,1734633048216,-500.0,0.00024812,4]
[346026005,1734633048226,-500.0,0.00024812,4]
[346026006,1734633048236,-500.0,0.00024812,4]
[346026007,1734633048246,-500.0,0.00024812,4]
[346026008,1734633048256,-500.0,0.00024812,4]
[346026009,1734633048266,-274.25183784,0.00024812,4]
[346026010,1734633048275,-500.0,0.00024812,4]
[346026011,1734633048284,-500.0,0.00024812,4]
[346026012,1734633048294,-778.76,0.00024812,4]
[346026013,1734633048303,-500.0,0.00024812,4]
[346026014,1734633048313,-500.0,0.00024812,4]
[346026015,1734633048323,-500.0,0.00024812,4]
[346026016,1734633048333,-500.0,0.00024812,4]
[346026017,1734633048342,-500.0,0.00024812,4]
[346026018,1734633048351,-500.0,0.00024812,4]
[346026019,1734633048361,-218.94334966,0.00024812,4]
[346026020,1734633048370,-500.0,0.00024812,4]
[346026021,1734633048379,-500.0,0.00024812,4]
[346026022,1734633048389,-500.0,0.00024812,4]
[346026023,1734633048399,-500.0,0.00024812,4]
[346026024,1734633048408,-500.0,0.00024812,4]
[346026025,1734633048420,-514.0,0.00024812,4]
[346026026,1734633048430,-500.0,0.00024812,4]
[346026027,1734633048440,-549.37,0.00024812,4]
[346026028,1734633048450,-504.39011301,0.00024812,4]
[346026029,1734633048460,-500.0,0.00024812,4]
[346026030,1734633048469,-500.0,0.00024812,4]
[346026031,1734633048479,-500.0,0.00024812,4]
[346026032,1734633048493,-500.0,0.00024812,4]
[346026033,1734633048504,-500.0,0.00024812,4]
[346026034,1734633048513,-500.0,0.00024812,4]
[346026035,1734633048523,-500.0,0.00024812,4]
[346026036,1734633048533,-305.84641821,0.00024812,4]
[346026037,1734633048542,-500.0,0.00024812,4]
[346026038,1734633048553,-500.0,0.00024812,4]
[346026039,1734633048563,-500.0,0.00024812,4]
[346026040,1734633048573,-505.15156816,0.00024812,4]
[346026041,1734633048583,-500.0,0.00024812,4]
[346026042,1734633048593,-500.0,0.00024812,4]
[346026043,1734633048603,-500.0,0.00024812,4]
[346026044,1734633048612,-500.0,0.00024812,4]
[346026045,1734633048622,-500.0,0.00024812,4]
[346026046,1734633048631,-808.88,0.00024812,4]
[346026047,1734633048641,-604.29959608,0.00024812,4]
[346026048,1734633048650,-500.0,0.00024812,4]
[346026049,1734633048663,-500.0,0.00024812,4]
[346026050,1734633048673,-500.0,0.00024812,4]
[346026051,1734633048683,-185.31,0.00024812,4]
[346026052,1734633048693,-500.0,0.00024812,4]
[346026053,1734633048702,-500.0,0.00024812,4]
[346026054,1734633048711,-1792.64,0.00024812,4]
[346026055,1734633048721,-407.74029049,0.00024812,4]
[346026056,1734633048730,-500.0,0.00024812,4]
[346026057,1734633048740,-500.0,0.00024812,4]
[346026058,1734633048749,-460.0768978,0.00024812,4]
[346026059,1734633048758,-500.0,0.00024812,4]
[346026060,1734633048767,-642.26845457,0.00024812,4]
[346026061,1734633048777,-354.88,0.00024812,4]
[346026062,1734633048789,-500.0,0.00024812,4]
[346026063,1734633048799,-500.0,0.00024812,4]
[346026064,1734633048810,-500.0,0.00024812,4]
[346026065,1734633048820,-1240.61,0.00024813,4]
[346026066,1734633048830,-692.84,0.00024813,4]
[346026067,1734633048840,-318.74458012,0.00024813,4]
[346026068,1734633048849,-500.0,0.00024813,4]
[346026069,1734633048858,-500.0,0.00024813,4]
[346026070,1734633048868,-500.0,0.00024813,4]
[346026071,1734633048880,-500.0,0.00024813,4]
[346026072,1734633048889,-644.18,0.00024813,4]
[346026073,1734633048899,-581.99,0.00024813,4]
[346026074,1734633048909,-169.7449,0.00024813,4]
[346026075,1734633048922,-500.0,0.00024813,4]
[346026076,1734633048931,-500.0,0.00024813,4]
[346026077,1734633048942,-500.0,0.00024813,4]
[346026078,1734633048952,-500.0,0.00024813,4]
[346026079,1734633048963,-1128.66,0.00024813,4]
[346026080,1734633048975,-580.72,0.00024813,4]
[346026081,1734633048988,-500.0,0.00024813,4]
[346026082,1734633048999,-500.0,0.00024813,4]
[346026083,1734633049010,-500.0,0.00024813,4]
[346026084,1734633049021,-500.0,0.00024813,4]
[346026085,1734633049032,-184.03492346,0.00024813,4]
[346026086,1734633049042,-500.0,0.00024813,4]
[346026087,1734633049053,-511.62644048,0.00024813,4]
[346026088,1734633049064,-500.0,0.00024813,4]
[346026089,1734633049074,-500.0,0.00024813,4]
[346026090,1734633049084,-500.0,0.00024814,4]
[346026091,1734633049094,-509.60819494,0.00024814,4]
[346026092,1734633049105,-500.0,0.00024814,4]
[346026093,1734633049115,-500.0,0.00024814,4]
[346026094,1734633049126,-500.0,0.00024814,4]
[346026095,1734633049135,-500.0,0.00024814,4]
[346026096,1734633049145,-500.0,0.00024814,4]
[346026097,1734633049154,-500.0,0.00024814,4]
[346026098,1734633049167,-500.0,0.00024814,4]
[346026099,1734633049176,-500.0,0.00024814,4]
[346026100,1734633049186,-500.0,0.00024814,4]
[346026101,1734633049196,-500.0,0.00024814,4]
[346026102,1734633049205,-500.0,0.00024814,4]
[346026103,1734633049215,-500.0,0.00024814,4]
[346026104,1734633049228,-500.0,0.00024814,4]
[346026105,1734633049237,-500.0,0.00024814,4]
[346026106,1734633049247,-785.97,0.00024814,4]
[346026107,1734633049257,-654.64,0.00024814,4]
[346026108,1734633049268,-500.0,0.00024814,4]
[346026109,1734633049278,-500.0,0.00024814,4]
[346026110,1734633049289,-530.63,0.00024814,4]
[346026111,1734633049299,-921.81,0.00024814,4]
[346026112,1734633049309,-500.0,0.00024814,4]
[346026113,1734633049320,-500.0,0.00024814,4]
[346026114,1734633049330,-500.0,0.00024814,4]
[346026115,1734633049340,-500.0,0.00024814,4]
[346026116,1734633049350,-500.0,0.00024814,4]
[346026117,1734633049360,-500.0,0.00024814,4]
[346026118,1734633049370,-500.0,0.00024821,4]
[346026119,1734633049379,-427.73,0.00024821,4]
[346026120,1734633049389,-500.0,0.00024821,4]
[346026121,1734633049398,-500.0,0.00024821,4]
[346026122,1734633049408,-500.0,0.00024821,4]
[346026123,1734633049421,-500.0,0.00024821,4]
[346026124,1734633049431,-621.38,0.00024821,4]
[346026125,1734633049441,-500.0,0.00024821,4]
[346026126,1734633049455,-358.18429424,0.00024821,4]
[346026127,1734633049465,-500.0,0.00024821,4]
[346026128,1734633049475,-500.0,0.00024821,4]
[346026129,1734633049485,-500.0,0.00024821,4]
[346026130,1734633049494,-500.0,0.00024821,4]
[346026131,1734633049504,-500.0,0.00024821,4]
[346026132,1734633049514,-500.0,0.00024821,4]
[346026133,1734633049524,-500.0,0.00024821,4]
[346026134,1734633049533,-579.16881458,0.00024821,4]
[346026135,1734633049544,-500.0,0.00024821,4]
[346026136,1734633049554,-500.0,0.00024821,4]
[346026137,1734633049563,-500.0,0.00024821,4]
[346026138,1734633049572,-500.0,0.00024821,4]
[346026139,1734633049582,-500.0,0.00024821,4]
[346026140,1734633049591,-500.0,0.00024821,4]
[346026141,1734633049600,-500.0,0.00024821,4]
[346026142,1734633049610,-500.0,0.00024821,4]
[346026143,1734633049621,-500.0,0.00024821,4]
[346026144,1734633049631,-500.0,0.00024821,4]
[346026145,1734633049641,-500.0,0.00024821,4]
[346026146,1734633049650,-706.52,0.00024821,4]
[346026147,1734633049660,-248.21755628,0.00024821,4]
[346026148,1734633049672,-500.0,0.00024821,4]
[346026149,1734633049682,-500.0,0.00024821,4]
[346026150,1734633049692,-500.0,0.00024821,4]
[346026151,1734633049702,-500.0,0.00024821,4]
[346026152,1734633049713,-1125.85,0.00024821,4]
[346026153,1734633049722,-500.0,0.00024823,4]
[346026154,1734633049732,-500.0,0.00024823,4]
[346026155,1734633049741,-502.61927027,0.00024823,4]
[346026156,1734633049751,-500.0,0.00024823,4]
[346026157,1734633049760,-1006.83,0.00024823,4]
[346026158,1734633049770,-500.0,0.00024823,4]
[346026159,1734633049780,-515.68,0.00024823,4]
[346026160,1734633049793,-197.87,0.00024823,4]
[346026161,1734633049803,-150.0,0.00024837,2]
[346026162,1734633049812,-150.0,0.00024846,2]
[346026163,1734633049821,-956.78,0.0002486,2]
[346026164,1734633049831,-150.0,0.00024867,2]
[346026165,1734633049840,-150.0,0.00024867,4]
[346026166,1734633049850,-161.45,0.00024892,2]
[346026167,1734633049859,-309.80964526,0.000249,2]
[346026168,1734633049868,-14912.06403474,0.000249,5]
[346026169,1734633049877,-738.23,0.000249,31]
[346026170,1734633049887,-738.23,0.000249,31]
[346026171,1734633049896,-738.23,0.000249,31]
[346026172,1734633049905,-738.23,0.000249,31]
[346026173,1734633049917,-738.23,0.000249,31]
[346026174,1734633049927,-738.23,0.000249,31]
[346026175,1734633049936,-738.23,0.000249,31]
[346026176,1734633049945,-738.23,0.000249,31]
[346026177,1734633049955,-738.23,0.000249,31]
[346026178,1734633049964,-738.23,0.000249,31]
[346026179,1734633049973,-738.23,0.000249,31]
[346026180,1734633049982,-738.23,0.000249,31]
[346026181,1734633049991,-738.23,0.000249,31]
[346026182,1734633050000,-738.23,0.000249,31]
[346026183,1734633050009,-738.23,0.000249,31]
[346026184,1734633050018,-738.23,0.000249,31]
[346026185,1734633050028,-615.10833277,0.000249,2]
[346026186,1734633050037,-48573.89704694,0.000249,3]
[346026187,1734633050046,-108833.42269939,0.000249,3]
[346026188,1734633050056,-1544.96446837,0.000249,2]
[346026189,1734633050065,-151.12430264,0.000249,2]
[346026190,1734633050074,-151.12430256,0.000249,2]
[346026191,1734633050084,-151.12430256,0.000249,2]
[346026192,1734633050094,-151.12430256,0.000249,2]
[346026193,1734633050102,-151.12430256,0.000249,2]
[346026194,1734633050111,-151.12430256,0.000249,2]
[346026195,1734633050120,-151.12430256,0.000249,2]
[346026196,1734633050130,-151.12430256,0.000249,2]
[346026197,1734633050140,-151.12430256,0.000249,2]
[346026198,1734633050150,-151.12430256,0.000249,2]
[346026199,1734633050160,-151.12430256,0.000249,2]
[346026200,1734633050171,-151.12430256,0.000249,2]
[346026201,1734633050179,-151.12430256,0.000249,2]
[346026202,1734633050188,-151.12430256,0.000249,2]
[346026203,1734633050198,-151.12430256,0.000249,2]
[346026204,1734633050207,-151.12430256,0.000249,2]
[346026205,1734633050217,-354.78155697,0.000249,2]
[346026206,1734633050226,-150.0,0.00024908,2]
[346026207,1734633050236,-150.0,0.00024912,2]
[346026208,1734633050245,-150.0,0.00024921,2]
[346026209,1734633050255,-200.0,0.00024922,2]
[346026210,1734633050265,-150.0,0.00024922,2]
[346026211,1734633050275,-150.0,0.00024935,2]
[346026212,1734633050284,-2000.0,0.00024936,120]
[346026213,1734633050293,-500.0,0.00024936,120]
[346026214,1734633050303,-200.0,0.00024936,120]
[346026215,1734633050313,-150.0,0.00024937,2]
[346026216,1734633050323,-150.0,0.00024937,2]
[346026217,1734633050332,-150.0,0.0002496,2]
[346026218,1734633050342,-159.93196896,0.00024986,4]
[346026219,1734633050351,-150.0,0.00024986,4]
[346026220,1734633050360,-150.0,0.00024986,4]
[346026221,1734633050369,-150.0,0.00024991,2]
[346026222,1734633050379,-150.0,0.00024996,2]
[346026223,1734633050388,-45472.2065196,0.00024998,4]
[346026224,1734633050397,-4137.848719,0.00024998,5]
[346026225,1734633050407,-1000.0,0.00024999,2]
[346026226,1734633050418,-500.0,0.00024999,2]
[346026227,1734633050428,-703.90263002,0.00024999,2]
[346026228,1734633050438,-198854.15765939,0.00025,3]
[346026229,1734633050447,-9223.57668037,0.00025,3]
[346026230,1734633050456,-176.50991002,0.00025,2]
[346026231,1734633050466,-438113.11073851,0.00025,2]
[346026232,1734633050791,-495.00000005,0.00025,2]
[346026233,1734633050803,-128586.20816185,0.00025,2]
[346026234,1734633050815,-390.3899993,0.00025,2]
[346026235,1734633050826,-17328.97731071,0.00025,2]
[346026236,1734633050837,-1023.45738,0.00025,2]
[346026237,1734633050848,-815.4059228,0.00025,2]
[346026238,1734633050860,-2930.38922551,0.00025,2]
[346026239,1734633050871,-834.47655247,0.00025,2]
[346026240,1734633050882,-39691.9517716,0.00025,2]
[346026241,1734633050893,-498.66965219,0.00025,2]
[346026242,1734633050904,-291.565602,0.00025,2]
[346026243,1734633050918,-343.75052228,0.00025,2]
[346026244,1734633050930,-900.0011555,0.00025,2]
[346026245,1734633050940,-427.73350974,0.00025,2]
[346026246,1734633050951,-1940.22,0.00025,2]
[346026247,1734633050996,-2919.99,0.00025,2]
[346026248,1734633051079,-202.70982642,0.00023179,4]
[346026249,1734633051089,-500.0,0.00023999,4]
[346026250,1734633051098,-500.0,0.00024273,4]
[346026251,1734633051107,-634.0,0.00024373,2]
[346026252,1734633051116,-8207.43624954,0.00025,2]
[346026253,1734633051128,-4854.85,0.00025,2]
[346026254,1734633051143,-1274.5951504,0.00021303,2]
[346026255,1734633051154,-1947.848,0.00021303,2]
[346026256,1734633051169,-378.88725781,0.00021303,2]
[346026257,1734633051179,-44212.37798397,0.00025,2]
[346026258,1734633051189,-360.20251,0.00025,2]
[346026259,1734633051201,-7317.01740855,0.00025,2]
[346026260,1734633051253,-3871.217311,0.00023179,2]
[346026261,1734633051264,-855.22269352,0.00023179,2]
[346026262,1734633051276,-2773.55999548,0.00023179,2]
[346026263,1734633051285,-500.0,0.00023179,4]
[346026264,1734633051294,-257.67169439,0.00023973,2]
[346026265,1734633051304,-4425.9434341,0.00023998,2]
[346026266,1734633051314,-500.0,0.00023999,4]
[346026267,1734633051324,-427.24907588,0.00024273,4]
[346026268,1734633051334,-13166.70231455,0.000248,2]
[346026269,1734633051344,-34219.85338867,0.00025,2]
[346026270,1734633051356,-18275.10586347,0.00025,2]
[346026271,1734633051371,-9738.6,0.00025,2]
[346026272,1734633051382,-9671.30530751,0.00025,2]
[346026273,1734633051442,-1961.85307694,0.00025,2]
[346026274,1734633051456,-48725.8003,0.00025,2]
[346026275,1734633051467,-302.90854399,0.00025,2]
[346026276,1734633051479,-970.19,0.00025,2]
[346026277,1734633051493,-69115.08874174,0.00025,2]
[346026278,1734633051504,-2051.0,0.00025,2]
[346026279,1734633051515,-1094.89760724,0.00025,2]
[346026280,1734633051526,-17565.3173534,0.00025,2]
[346026281,1734633051537,-30317.60389634,0.00025,2]
[346026282,1734633051549,-1088.11342807,0.00025,2]
[346026283,1734633051561,-563.46221121,0.00025,2]
[346026284,1734633051572,-346.89689103,0.00025,2]
[346026285,1734633052315,-4852.91,0.00025,2]
[346026286,1734633052326,-1038.65042281,0.00025,2]
[346026287,1734633052342,-500.0,0.00023179,4]
[346026288,1734633052352,-120175.08296219,0.00025,2]
[346026289,1734633052363,-1847.12637219,0.00025,2]
[346026290,1734633052375,-2290.0,0.00025,2]
[346026291,1734633052492,-8333.52933251,0.00025,2]
[346026292,1734633158851,181.44,0.00010137,2]
[346026294,1734633262651,161.48,0.00013699,2]
[346026295,1734633286203,27000.0,0.0002,120]
[346026296,1734633762488,168.46,0.00017891,2]
[346026303,1734633858789,-180.22,0.00023191,30]
[346026304,1734633875449,-266.06591,0.00023088,7]
[346026305,1734633875480,-53.93409,0.00023088,7]
[346026306,1734633885008,-446.06591,0.00023088,7]
[346026307,1734633885038,-53.93409,0.00023288,7]